fUSD/lending_fUSD_20250617
["ID","MTS","AMOUNT","RATE_DAILY","PERIOD"]
[366308839,1750181443386,-490.0,0.00016438,2]
[366308841,1750181443395,-490.0,0.00016438,2]
[366308843,1750181443404,-490.0,0.00016438,2]
[366308845,1750181443414,-162.81244,0.00016438,2]
[366308847,1750181443423,-490.0,0.00016438,2]
[366308849,1750181443433,-490.0,0.00016438,2]
[366308851,1750181443442,-490.0,0.00016438,2]
[366308853,1750181443452,-490.0,0.00016438,2]
[366308855,1750181443461,-490.0,0.00016438,2]
[366308857,1750181443471,-490.0,0.00016438,2]
[366308859,1750181443479,-490.0,0.00016438,2]
[366308861,1750181443489,-490.0,0.00016438,2]
[366308863,1750181443498,-490.0,0.00016438,2]
[366308865,1750181443508,-518.33,0.00016438,2]
[366308867,1750181443517,-490.0,0.00016438,2]
[366308869,1750181443527,-490.0,0.00016438,2]
[366308871,1750181443536,-849.57,0.00016438,2]
[366308873,1750181443545,-253.10653603,0.00016438,2]
[366308875,1750181443555,-490.0,0.00016438,2]
[366308877,1750181443564,-490.0,0.00016438,2]
[366308879,1750181443573,-490.0,0.00016438,2]
[366308881,1750181443582,-490.0,0.00016438,2]
[366308883,1750181443592,-490.0,0.00016438,2]
[366308886,1750181443601,-490.0,0.00016438,2]
[366308889,1750181443611,-490.0,0.00016438,2]
[366308892,1750181443620,-490.0,0.00016438,2]
[366308895,1750181443630,-2259.5,0.00016438,2]
[366308898,1750181443640,-490.0,0.00016438,2]
[366308900,1750181443649,-490.0,0.00016438,2]
[366308903,1750181443659,-680.72,0.00016438,2]
[366308906,1750181443668,-490.0,0.00016438,2]
[366308908,1750181443678,-491.75878368,0.00016438,2]
[366308910,1750181443687,-490.0,0.00016438,2]
[366308912,1750181443697,-490.0,0.00016438,2]
[366308914,1750181443706,-646.93,0.00016438,2]
[366308916,1750181443716,-490.0,0.00016438,2]
[366308917,1750181443725,-490.0,0.00016438,2]
[366308918,1750181443735,-490.0,0.00016438,2]
[366308919,1750181443744,-490.0,0.00016438,2]
[366308920,1750181443754,-696.69,0.00016438,2]
[366308921,1750181443764,-490.0,0.00016438,2]
[366308922,1750181443773,-1596.86,0.00016438,2]
[366308923,1750181443783,-491.27893307,0.00016438,2]
[366308924,1750181443792,-490.0,0.00016438,2]
[366308925,1750181443801,-490.0,0.00016438,2]
[366308926,1750181443811,-320.0,0.00016438,2]
[366308927,1750181443821,-490.0,0.00016438,2]
[366308928,1750181443831,-490.0,0.00016438,2]
[366308929,1750181443841,-490.0,0.00016438,2]
[366308930,1750181443851,-490.0,0.00016438,2]
[366308931,1750181443862,-490.0,0.00016438,2]
[366308932,1750181443871,-490.0,0.00016438,2]
[366308933,1750181443881,-490.0,0.00016438,2]
[366308934,1750181443891,-490.0,0.00016438,2]
[366308936,1750181443901,-490.0,0.00016438,2]
[366308938,1750181443911,-490.0,0.00016438,2]
[366308940,1750181443920,-490.0,0.00016438,2]
[366308942,1750181443930,-490.0,0.00016438,2]
[366308944,1750181443941,-490.0,0.00016438,2]
[366308946,1750181443950,-480.0,0.00016438,2]
[366308948,1750181443960,-490.0,0.00016438,2]
[366308950,1750181443970,-516.83,0.00016438,2]
[366308952,1750181443979,-490.0,0.00016438,2]
[366308954,1750181443988,-785.21,0.00016438,2]
[366308956,1750181443997,-490.0,0.00016438,2]
[366308958,1750181444007,-490.0,0.00016438,2]
[366308960,1750181444017,-490.0,0.00016438,2]
[366308962,1750181444026,-490.0,0.00016438,2]
[366308964,1750181444037,-306.16798758,0.00016438,2]
[366308966,1750181444046,-490.0,0.00016438,2]
[366308968,1750181444056,-490.0,0.00016438,2]
[366308970,1750181444065,-490.0,0.00016438,2]
[366308972,1750181444075,-490.0,0.00016438,2]
[366308974,1750181444084,-490.0,0.00016438,2]
[366308976,1750181444094,-490.0,0.00016438,2]
[366308978,1750181444104,-1278.17,0.00016438,2]
[366308980,1750181444114,-505.28,0.00016438,2]
[366308982,1750181444124,-490.0,0.00016438,2]
[366308984,1750181444135,-873.19,0.00016438,2]
[366308986,1750181444145,-490.0,0.00016438,2]
[366308988,1750181444155,-490.0,0.00016438,2]
[366308990,1750181444165,-560.99,0.00016438,2]
[366308992,1750181444175,-490.64522843,0.00016438,2]
[366308994,1750181444185,-490.0,0.00016438,2]
[366308996,1750181444195,-490.0,0.00016438,2]
[366308999,1750181444207,-490.0,0.00016438,2]
[366309001,1750181444218,-490.5,0.00016438,2]
[366309003,1750181444228,-490.0,0.00016438,2]
[366309005,1750181444238,-490.0,0.00016438,2]
[366309007,1750181444247,-490.0,0.00016438,2]
[366309008,1750181444257,-859.69,0.00016438,2]
[366309011,1750181444269,-1107.27,0.00016438,2]
[366309013,1750181444279,-490.0,0.00016438,2]
[366309014,1750181444288,-637.21,0.00016438,2]
[366309017,1750181444300,-490.0,0.00016438,2]
[366309019,1750181444309,-1194.95,0.00016438,2]
[366309021,1750181444319,-490.0,0.00016438,2]
[366309023,1750181444329,-1002.98,0.00016438,2]
[366309025,1750181444339,-500.0,0.00016438,2]
[366309027,1750181444350,-500.0,0.00016438,2]
[366309029,1750181444360,-490.0,0.00016438,2]
[366309031,1750181444370,-500.0,0.00016438,2]
[366309033,1750181444380,-490.0,0.00016438,2]
[366309035,1750181444394,-490.0,0.00016438,2]
[366309037,1750181444404,-500.0,0.00016438,2]
[366309039,1750181444413,-500.0,0.00016438,2]
[366309041,1750181444423,-500.0,0.00016438,2]
[366309043,1750181444432,-2110.3,0.00016438,2]
[366309045,1750181444442,-490.0,0.00016438,2]
[366309047,1750181444452,-490.0,0.00016438,2]
[366309049,1750181444461,-490.0,0.00016438,2]
[366309051,1750181444472,-490.0,0.00016438,2]
[366309053,1750181444481,-1332.38,0.00016438,2]
[366309055,1750181444491,-490.0,0.00016438,2]
[366309057,1750181444500,-490.0,0.00016438,2]
[366309059,1750181444510,-638.41,0.00016438,2]
[366309061,1750181444520,-490.0,0.00016438,2]
[366309063,1750181444530,-490.0,0.00016438,2]
[366309065,1750181444540,-490.0,0.00016438,2]
[366309067,1750181444549,-490.0,0.00016438,2]
[366309069,1750181444559,-627.91,0.00016438,2]
[366309071,1750181444569,-490.0,0.00016438,2]
[366309073,1750181444578,-490.0,0.00016438,2]
[366309075,1750181444587,-490.0,0.00016438,2]
[366309077,1750181444597,-490.0,0.00016438,2]
[366309080,1750181444607,-490.0,0.00016438,2]
[366309081,1750181444616,-581.38,0.00016438,2]
[366309084,1750181444626,-490.0,0.00016438,2]
[366309085,1750181444637,-1000.0,0.00016438,2]
[366309087,1750181444646,-490.0,0.00016438,2]
[366309089,1750181444656,-490.0,0.00016438,2]
[366309092,1750181444665,-490.0,0.00016438,2]
[366309094,1750181444675,-2055.29,0.00016438,2]
[366309095,1750181444684,-490.0,0.00016438,2]
[366309098,1750181444694,-1245.8,0.00016438,2]
[366309100,1750181444703,-490.0,0.00016438,2]
[366309102,1750181444713,-490.0,0.00016438,2]
[366309104,1750181444723,-490.0,0.00016438,2]
[366309105,1750181444732,-176.32586799,0.00016438,2]
[366309107,1750181444742,-490.0,0.00016438,2]
[366309109,1750181444751,-490.0,0.00016438,2]
[366309112,1750181444761,-407.11662682,0.00016438,2]
[366309213,1750181445741,-82.88337318,0.00016438,2]
[366309215,1750181445750,-490.0,0.00016438,2]
[366309217,1750181445760,-490.0,0.00016438,2]
[366309219,1750181445770,-490.0,0.00016438,2]
[366309221,1750181445779,-522.71662682,0.00016438,2]
[366309288,1750181446578,-1301.17337318,0.00016438,2]
[366309289,1750181446587,-153.79981281,0.00016438,2]
[366309292,1750181446599,-336.20018719,0.00016438,2]
[366309294,1750181446609,-490.0,0.00016438,2]
[366309296,1750181446618,-630.51,0.00016438,2]
[366309298,1750181446627,-490.0,0.00016438,2]
[366309300,1750181446638,-490.0,0.00016438,2]
[366309302,1750181446647,-490.0,0.00016438,2]
[366309305,1750181446657,-490.0,0.00016438,2]
[366309307,1750181446666,-490.0,0.00016438,2]
[366309309,1750181446675,-490.0,0.00016438,2]
[366309311,1750181446685,-490.0,0.00016438,2]
[366309313,1750181446695,-490.0,0.00016438,2]
[366309315,1750181446704,-490.0,0.00016438,2]
[366309317,1750181446713,-1282.0,0.00016438,2]
[366309318,1750181446722,-490.0,0.00016438,2]
[366309319,1750181446732,-1845.68,0.00016438,2]
[366309320,1750181446741,-567.74,0.00016438,2]
[366309321,1750181446751,-490.0,0.00016438,2]
[366309322,1750181446760,-905.54,0.00016438,2]
[366309323,1750181446770,-960.1,0.00016438,2]
[366309324,1750181446781,-490.0,0.00016438,2]
[366309325,1750181446790,-490.0,0.00016438,2]
[366309326,1750181446800,-490.0,0.00016438,2]
[366309327,1750181446809,-621.31,0.00016438,2]
[366309328,1750181446818,-490.0,0.00016438,2]
[366309329,1750181446828,-518.98188246,0.00016438,2]
[366309330,1750181446837,-1506.25,0.00016438,2]
[366309331,1750181446845,-490.0,0.00016438,2]
[366309332,1750181446855,-490.0,0.00016438,2]
[366309333,1750181446864,-687.8,0.00016438,2]
[366309334,1750181446874,-490.0,0.00016438,2]
[366309336,1750181446886,-591.17,0.00016438,2]
[366309338,1750181446895,-417.55000033,0.00016438,2]
[366309340,1750181446904,-668.24,0.00016438,2]
[366309342,1750181446914,-490.0,0.00016438,2]
[366309344,1750181446923,-428.60967928,0.00016438,2]
[366309346,1750181446932,-544.32,0.00016438,2]
[366309348,1750181446941,-490.0,0.00016438,2]
[366309350,1750181446951,-578.56,0.00016438,2]
[366309352,1750181446960,-490.0,0.00016438,2]
[366309354,1750181446969,-192.18427828,0.00016438,2]
[366309356,1750181446980,-490.0,0.00016438,2]
[366309358,1750181446989,-490.0,0.00016438,2]
[366309360,1750181446999,-620.65,0.00016438,2]
[366309362,1750181447008,-887.73,0.00016438,2]
[366309364,1750181447018,-490.0,0.00016438,2]
[366309366,1750181447027,-490.0,0.00016438,2]
[366309368,1750181447038,-490.0,0.00016438,2]
[366309370,1750181447048,-490.0,0.00016438,2]
[366309372,1750181447057,-628.78,0.00016438,2]
[366309374,1750181447066,-490.0,0.00016438,2]
[366309376,1750181447076,-490.0,0.00016438,2]
[366309378,1750181447086,-719.53,0.00016438,2]
[366309380,1750181447096,-490.0,0.00016438,2]
[366309382,1750181447107,-490.0,0.00016438,2]
[366309384,1750181447118,-490.0,0.00016438,2]
[366309386,1750181447128,-1083.98,0.00016438,2]
[366309388,1750181447145,-490.0,0.00016438,2]
[366309390,1750181447154,-512.14,0.00016438,2]
[366309392,1750181447164,-490.0,0.00016438,2]
[366309394,1750181447174,-1240.64,0.00016438,2]
[366309396,1750181447184,-490.0,0.00016438,2]
[366309398,1750181447193,-886.24,0.00016438,2]
[366309400,1750181447203,-490.0,0.00016438,2]
[366309403,1750181447214,-748.0,0.00016438,2]
[366309405,1750181447226,-874.84,0.00016438,2]
[366309406,1750181447236,-490.0,0.00016438,2]
[366309408,1750181447246,-563.75,0.00016438,2]
[366309410,1750181447255,-219.69772127,0.00016438,2]
[366309413,1750181447266,-254.96165914,0.00016438,2]
[366309415,1750181447275,-490.0,0.00016438,2]
[366309417,1750181447285,-490.0,0.00016438,2]
[366309419,1750181447296,-490.0,0.00016438,2]
[366309421,1750181447305,-490.0,0.00016438,2]
[366309423,1750181447315,-490.0,0.00016438,2]
[366309425,1750181447324,-573.11,0.00016438,2]
[366309427,1750181447334,-635.53,0.00016438,2]
[366309429,1750181447344,-990.35,0.00016438,2]
[366309431,1750181447353,-490.0,0.00016438,2]
[366309433,1750181447363,-490.0,0.00016438,2]
[366309435,1750181447373,-1154.54,0.00016438,2]
[366309437,1750181447382,-490.0,0.00016438,2]
[366309439,1750181447396,-490.0,0.00016438,2]
[366309441,1750181447405,-490.0,0.00016438,2]
[366309443,1750181447414,-490.0,0.00016438,2]
[366309445,1750181447423,-540.75,0.00016438,2]
[366309446,1750181447433,-1089.89,0.00016438,2]
[366309448,1750181447443,-490.0,0.00016438,2]
[366309450,1750181447453,-562.7291788,0.00016438,2]
[366309453,1750181447462,-555.6,0.00016438,2]
[366309454,1750181447471,-490.0,0.00016438,2]
[366309457,1750181447481,-540.9,0.00016438,2]
[366309459,1750181447490,-658.43,0.00016438,2]
[366309461,1750181447500,-490.0,0.00016438,2]
[366309463,1750181447509,-490.0,0.00016438,2]
[366309465,1750181447519,-185.9821133,0.00016438,2]
[366309466,1750181447528,-876.66,0.00016438,2]
[366309468,1750181447538,-490.58,0.00016438,2]
[366309470,1750181447548,-781.85,0.00016438,2]
[366309471,1750181447558,-490.0,0.00016438,2]
[366309473,1750181447567,-490.0,0.00016438,2]
[366309475,1750181447577,-490.0,0.00016438,2]
[366309476,1750181447587,-594.93,0.00016438,2]
[366309478,1750181447597,-490.0,0.00016438,2]
[366309480,1750181447606,-700.12,0.00016438,2]
[366309481,1750181447616,-888.88,0.00016438,2]
[366309483,1750181447625,-490.0,0.00016438,2]
[366309485,1750181447635,-490.0,0.00016438,2]
[366309486,1750181447645,-490.0,0.00016438,2]
[366309488,1750181447654,-490.0,0.00016438,2]
[366309490,1750181447663,-490.0,0.00016438,2]
[366309491,1750181447672,-1134.93,0.00016438,2]
[366309493,1750181447682,-490.0,0.00016438,2]
[366309495,1750181447692,-490.0,0.00016438,2]
[366309496,1750181447701,-505.28,0.00016438,2]
[366309498,1750181447710,-1375.58,0.00016438,2]
[366309500,1750181447720,-490.0,0.00016438,2]
[366309502,1750181447729,-490.0,0.00016438,2]
[366309503,1750181447739,-490.0,0.00016438,2]
[366309505,1750181447748,-634.05,0.00016438,2]
[366309507,1750181447757,-490.0,0.00016438,2]
[366309509,1750181447767,-490.0,0.00016438,2]
[366309511,1750181447777,-1075.85,0.00016438,2]
[366309512,1750181447786,-490.0,0.00016438,2]
[366309514,1750181447795,-467.59623716,0.00016438,2]
[366309516,1750181447804,-490.0,0.00016438,2]
[366309517,1750181447814,-490.0,0.00016438,2]
[366309519,1750181447823,-490.0,0.00016438,2]
[366309521,1750181447832,-490.0,0.00016438,2]
[366309522,1750181447842,-490.0,0.00016438,2]
[366309524,1750181447852,-490.0,0.00016438,2]
[366309526,1750181447862,-490.0,0.00016438,2]
[366309527,1750181447871,-490.0,0.00016438,2]
[366309529,1750181447883,-634.45,0.00016438,2]
[366309531,1750181447896,-490.0,0.00016438,2]
[366309533,1750181447905,-660.23,0.00016438,2]
[366309535,1750181447915,-490.0,0.00016438,2]
[366309536,1750181447924,-490.0,0.00016438,2]
[366309538,1750181447934,-490.0,0.00016438,2]
[366309540,1750181447943,-490.0,0.00016438,2]
[366309542,1750181447953,-490.0,0.00016438,2]
[366309544,1750181447962,-490.0,0.00016438,2]
[366309545,1750181447973,-1601.28,0.00016438,2]
[366309547,1750181447982,-733.31,0.00016438,2]
[366309549,1750181447992,-639.53,0.00016438,2]
[366309551,1750181448001,-478.79703511,0.00016438,2]
[366309553,1750181448010,-513.2,0.00016438,2]
[366309555,1750181448020,-490.0,0.00016438,2]
[366309556,1750181448029,-490.0,0.00016438,2]
[366309558,1750181448038,-919.71,0.00016438,2]
[366309560,1750181448049,-490.0,0.00016438,2]
[366309562,1750181448058,-490.0,0.00016438,2]
[366309563,1750181448068,-490.0,0.00016438,2]
[366309565,1750181448079,-663.87,0.00016438,2]
[366309567,1750181448088,-697.17,0.00016438,2]
[366309569,1750181448098,-490.0,0.00016438,2]
[366309571,1750181448109,-490.0,0.00016438,2]
[366309573,1750181448118,-490.0,0.00016438,2]
[366309575,1750181448129,-490.0,0.00016438,2]
[366309576,1750181448140,-490.0,0.00016438,2]
[366309578,1750181448150,-490.0,0.00016438,2]
[366309580,1750181448160,-490.0,0.00016438,2]
[366309582,1750181448169,-732.28,0.00016438,2]
[366309584,1750181448179,-490.0,0.00016438,2]
[366309585,1750181448188,-692.49,0.00016438,2]
[366309587,1750181448198,-490.0,0.00016438,2]
[366309589,1750181448207,-532.92,0.00016438,2]
[366309591,1750181448220,-490.0,0.00016438,2]
[366309593,1750181448231,-490.0,0.00016438,2]
[366309594,1750181448242,-490.0,0.00016438,2]
[366309596,1750181448253,-490.0,0.00016438,2]
[366309598,1750181448263,-490.0,0.00016438,2]
[366309600,1750181448274,-492.65,0.00016438,2]
[366309602,1750181448284,-490.0,0.00016438,2]
[366309604,1750181448294,-1587.52,0.00016438,2]
[366309605,1750181448306,-490.0,0.00016438,2]
[366309607,1750181448316,-567.38,0.00016438,2]
[366309609,1750181448326,-1348.95,0.00016438,2]
[366309611,1750181448335,-490.0,0.00016438,2]
[366309613,1750181448346,-541.52,0.00016438,2]
[366309614,1750181448356,-2396.3,0.00016438,2]
[366309616,1750181448365,-490.0,0.00016438,2]
[366309618,1750181448375,-556.3,0.00016438,2]
[366309620,1750181448386,-561.2,0.00016438,2]
[366309622,1750181448396,-490.0,0.00016438,2]
[366309623,1750181448406,-283.90729037,0.00016438,2]
[366309625,1750181448416,-490.0,0.00016438,2]
[366309627,1750181448426,-490.0,0.00016438,2]
[366309629,1750181448435,-490.0,0.00016438,2]
[366309631,1750181448445,-1030.14,0.00016438,2]
[366309632,1750181448454,-490.54524695,0.00016438,2]
[366309634,1750181448465,-490.0,0.00016438,2]
[366309636,1750181448474,-490.0,0.00016438,2]
[366309638,1750181448484,-490.0,0.00016438,2]
[366309640,1750181448494,-620.47210287,0.00016438,2]
[366309641,1750181448503,-490.0,0.00016438,2]
[366309643,1750181448513,-490.0,0.00016438,2]
[366309645,1750181448525,-490.0,0.00016438,2]
[366309647,1750181448534,-490.0,0.00016438,2]
[366309649,1750181448544,-490.0,0.00016438,2]
[366309650,1750181448555,-490.0,0.00016438,2]
[366309651,1750181448565,-490.0,0.00016438,2]
[366309652,1750181448575,-490.0,0.00016438,2]
[366309653,1750181448584,-490.0,0.00016438,2]
[366309654,1750181448593,-602.41,0.00016438,2]
[366309655,1750181448603,-490.0,0.00016438,2]
[366309656,1750181448612,-1251.57,0.00016438,2]
[366309657,1750181448621,-490.0,0.00016438,2]
[366309658,1750181448631,-963.61,0.00016438,2]
[366309659,1750181448642,-490.0,0.00016438,2]
[366309660,1750181448651,-1111.08,0.00016438,2]
[366309661,1750181448661,-490.0,0.00016438,2]
[366309662,1750181448670,-490.0,0.00016438,2]
[366309663,1750181448680,-490.0,0.00016438,2]
[366309664,1750181448690,-469.43923166,0.00016438,2]
[366309666,1750181448700,-490.0,0.00016438,2]
[366309668,1750181448709,-490.0,0.00016438,2]
[366309669,1750181448719,-604.22,0.00016438,2]
[366309670,1750181448729,-490.0,0.00016438,2]
[366309671,1750181448738,-490.0,0.00016438,2]
[366309672,1750181448747,-490.0,0.00016438,2]
[366309673,1750181448756,-490.0,0.00016438,2]
[366309674,1750181448765,-490.0,0.00016438,2]
[366309675,1750181448774,-490.0,0.00016438,2]
[366309676,1750181448784,-490.0,0.00016438,2]
[366309677,1750181448793,-490.0,0.00016438,2]
[366309678,1750181448802,-490.0,0.00016438,2]
[366309679,1750181448811,-490.0,0.00016438,2]
[366309680,1750181448820,-1742.89,0.00016438,2]
[366309681,1750181448829,-490.0,0.00016438,2]
[366309682,1750181448838,-490.0,0.00016438,2]
[366309683,1750181448848,-490.0,0.00016438,2]
[366309684,1750181448857,-490.0,0.00016438,2]
[366309685,1750181448866,-490.0,0.00016438,2]
[366309686,1750181448875,-1249.42,0.00016438,2]
[366309687,1750181448885,-608.02,0.00016438,2]
[366309688,1750181448894,-679.01,0.00016438,2]
[366309689,1750181448903,-1282.57,0.00016438,2]
[366309690,1750181448912,-490.0,0.00016438,2]
[366309691,1750181448922,-513.14,0.00016438,2]
[366309692,1750181448931,-704.46,0.00016438,2]
[366309693,1750181448940,-490.0,0.00016438,2]
[366309694,1750181448949,-1113.22,0.00016438,2]
[366309696,1750181448959,-490.0,0.00016438,2]
[366309697,1750181448969,-490.0,0.00016438,2]
[366309699,1750181448978,-490.0,0.00016438,2]
[366309701,1750181448988,-490.0,0.00016438,2]
[366309703,1750181448998,-444.36567227,0.00016438,2]
[366309705,1750181449007,-1298.83,0.00016438,2]
[366309707,1750181449017,-1831.28,0.00016438,2]
[366309709,1750181449026,-490.0,0.00016438,2]
[366309711,1750181449035,-490.0,0.00016438,2]
[366309713,1750181449044,-490.0,0.00016438,2]
[366309715,1750181449053,-490.0,0.00016438,2]
[366309717,1750181449063,-490.0,0.00016438,2]
[366309719,1750181449073,-490.0,0.00016438,2]
[366309721,1750181449082,-1009.31,0.00016438,2]
[366309723,1750181449092,-490.0,0.00016438,2]
[366309725,1750181449102,-1107.74,0.00016438,2]
[366309727,1750181449111,-490.0,0.00016438,2]
[366309729,1750181449120,-490.0,0.00016438,2]
[366309731,1750181449130,-1179.31,0.00016438,2]
[366309733,1750181449142,-490.0,0.00016438,2]
[366309735,1750181449151,-490.0,0.00016438,2]
[366309737,1750181449161,-490.0,0.00016438,2]
[366309739,1750181449171,-490.0,0.00016438,2]
[366309741,1750181449182,-490.0,0.00016438,2]
[366309743,1750181449192,-490.0,0.00016438,2]
[366309745,1750181449202,-490.0,0.00016438,2]
[366309747,1750181449212,-490.0,0.00016438,2]
[366309749,1750181449225,-490.0,0.00016438,2]
[366309751,1750181449234,-490.0,0.00016438,2]
[366309753,1750181449245,-490.0,0.00016438,2]
[366309755,1750181449255,-490.0,0.00016438,2]
[366309757,1750181449266,-490.0,0.00016438,2]
[366309759,1750181449276,-490.0,0.00016438,2]
[366309761,1750181449289,-490.0,0.00016438,2]
[366309763,1750181449299,-490.0,0.00016438,2]
[366309765,1750181449310,-490.0,0.00016438,2]
[366309767,1750181449320,-490.0,0.00016438,2]
[366309769,1750181449330,-490.0,0.00016438,2]
[366309771,1750181449340,-490.0,0.00016438,2]
[366309773,1750181449350,-490.0,0.00016438,2]
[366309775,1750181449361,-643.02,0.00016438,2]
[366309777,1750181449371,-490.0,0.00016438,2]
[366309779,1750181449382,-968.64,0.00016438,2]
[366309782,1750181449398,-490.0,0.00016438,2]
[366309783,1750181449407,-490.0,0.00016438,2]
[366309785,1750181449417,-490.0,0.00016438,2]
[366309788,1750181449428,-577.77,0.00016438,2]
[366309790,1750181449438,-556.82,0.00016438,2]
[366309792,1750181449448,-490.0,0.00016438,2]
[366309794,1750181449458,-490.0,0.00016438,2]
[366309796,1750181449468,-490.0,0.00016438,2]
[366309798,1750181449478,-596.13,0.00016438,2]
[366309800,1750181449488,-490.0,0.00016438,2]
[366309802,1750181449498,-642.71,0.00016438,2]
[366309804,1750181449508,-490.0,0.00016438,2]
[366309806,1750181449518,-490.0,0.00016438,2]
[366309808,1750181449528,-490.0,0.00016438,2]
[366309810,1750181449538,-492.26621794,0.00016438,2]
[366309812,1750181449548,-541.79,0.00016438,2]
[366309814,1750181449558,-1322.14,0.00016438,2]
[366309816,1750181449568,-966.71,0.00016438,2]
[366309818,1750181449578,-490.0,0.00016438,2]
[366309820,1750181449588,-490.0,0.00016438,2]
[366309850,1750181449866,-2002.22,0.00016438,2]
[366309852,1750181449876,-490.0,0.00016438,2]
[366309854,1750181449887,-167.31348568,0.00016438,2]
[366309857,1750181449897,-490.0,0.00016438,2]
[366309859,1750181449906,-490.0,0.00016438,2]
[366309861,1750181449916,-490.0,0.00016438,2]
[366309862,1750181449926,-1733.7,0.00016438,2]
[366309865,1750181449936,-531.68,0.00016438,2]
[366309867,1750181449946,-822.19,0.00016438,2]
[366309869,1750181449956,-490.0,0.00016438,2]
[366309871,1750181449966,-490.0,0.00016438,2]
[366309873,1750181449975,-1397.44,0.00016438,2]
[366309875,1750181449984,-490.0,0.00016438,2]
[366309877,1750181449994,-421.41303659,0.00016438,2]
[366309879,1750181450004,-490.0,0.00016438,2]
[366309881,1750181450014,-1075.95,0.00016438,2]
[366309883,1750181450023,-490.0,0.00016438,2]
[366309885,1750181450033,-694.46,0.00016438,2]
[366309887,1750181450042,-281.0534557,0.00016438,2]
[366309889,1750181450052,-1920.35,0.00016438,2]
[366309891,1750181450061,-490.0,0.00016438,2]
[366309893,1750181450071,-490.0,0.00016438,2]
[366309895,1750181450080,-490.0,0.00016438,2]
[366309897,1750181450090,-490.0,0.00016438,2]
[366309899,1750181450100,-1206.37,0.00016438,2]
[366309901,1750181450109,-956.48,0.00016438,2]
[366309903,1750181450119,-547.84,0.00016438,2]
[366309905,1750181450128,-229.89096815,0.00016438,2]
[366309907,1750181450139,-490.0,0.00016438,2]
[366309909,1750181450149,-490.0,0.00016438,2]
[366309911,1750181450159,-172.92966066,0.00016438,2]
[366309913,1750181450168,-490.0,0.00016438,2]
[366309915,1750181450178,-490.0,0.00016438,2]
[366309917,1750181450187,-1164.23,0.00016438,2]
[366309919,1750181450197,-490.0,0.00016438,2]
[366309921,1750181450207,-778.45,0.00016438,2]
[366309923,1750181450217,-941.15,0.00016438,2]
[366309925,1750181450228,-490.0,0.00016438,2]
[366309927,1750181450238,-913.94,0.00016438,2]
[366309929,1750181450247,-631.26,0.00016438,2]
[366309931,1750181450258,-1972.05,0.00016438,2]
[366309933,1750181450268,-1007.25,0.00016438,2]
[366309935,1750181450280,-490.0,0.00016438,2]
[366309937,1750181450290,-490.0,0.00016438,2]
[366309939,1750181450300,-490.0,0.00016438,2]
[366309941,1750181450310,-490.0,0.00016438,2]